bitfinex-derivatives/quotes_ETHF0:USTF0_20250224
["timestamp","ask_amount","ask_price","bid_price","bid_amount"]
[1740426251086,0.75915,2634.2,2633.8,3.523]
[1740426251387,0.56388896,2633.4,2632.8,8.76744712]
[1740426251587,0.56388896,2633.4,2632.9,3.2078]
[1740426251887,3.2078,2634.0,2633.3,3.2078]
[1740426252090,0.56958005,2633.4,2633.0,3.2078]
[1740426252291,0.00569109,2633.4,2633.0,3.2078]
[1740426252482,0.56958005,2633.4,2633.0,3.2078]
[1740426252686,0.56388896,2633.1,2632.8,8.76744712]
[1740426252988,0.56388896,2632.9,2632.8,8.76744712]
[1740426253289,0.56388896,2633.3,2633.2,0.75944]
[1740426253588,0.56958005,2633.4,2633.2,3.2078]
[1740426253899,0.00569109,2633.4,2633.3,3.629]
[1740426254089,0.56958005,2633.4,2633.3,3.629]
[1740426254387,0.56958005,2633.4,2632.8,8.76744712]
[1740426254581,0.75943,2633.3,2632.9,3.68]
[1740426254779,0.00569109,2633.4,2632.9,3.68]
[1740426254780,0.56388896,2633.0,2632.9,3.68]
[1740426255387,0.56388896,2633.0,2632.7,6.8888]
[1740426255591,0.56388896,2632.6,2632.4,3.2078]
[1740426255789,0.56388896,2632.6,2631.1,9.73608]
[1740426255790,1.32353896,2632.5,2632.1,3.2078]
[1740426256095,0.56388896,2632.1,2632.0,0.76353472]
[1740426256385,3.96733,2632.9,2632.0,0.00375472]
[1740426256579,1.32363896,2632.1,2632.0,0.00375472]
[1740426256784,1.63460524,2632.1,2632.0,0.00375472]
[1740426256997,1.32363896,2632.1,2632.0,0.00375472]
[1740426257287,3.2078,2632.3,2631.3,2.64391104]
[1740426257288,0.75996,2631.4,2631.3,2.64391104]
[1740426257480,3.2078,2631.4,2630.8,0.76012]
[1740426257680,0.76008,2631.0,2630.6,44.0078]
[1740426257881,0.76022,2630.5,2630.4,0.30636682]
[1740426258088,7.0918,2630.5,2630.2,11.54075765]
[1740426258289,9.2078,2630.5,2629.0,9.83179768]
[1740426258489,3.2078,2630.0,2629.0,8.80679768]
[1740426258688,0.76062,2629.1,2628.3,17.72173167]
[1740426258987,0.5669,2630.4,2628.4,3.2078]
[1740426258988,0.7607,2628.9,2628.4,3.2078]
[1740426259193,5.10893,2629.7,2628.3,14.51393167]
[1740426259194,3.2078,2628.5,2628.3,14.51393167]
[1740426259492,0.76082,2628.4,2628.3,8.53145922]
[1740426259684,0.76081,2628.5,2628.3,6.87279557]
[1740426259885,1.90682201,2629.8,2627.9,7.6064]
[1740426259886,3.2078,2628.4,2627.9,7.6064]
[1740426260083,4.265,2628.4,2627.9,3.2078]
[1740426260283,4.265,2628.4,2627.3,20.32238161]
[1740426260284,3.2078,2628.0,2627.3,20.32238161]
[1740426260483,3.2078,2627.6,2627.3,20.32238161]
[1740426260689,0.00570201,2628.3,2627.8,18.056297]
[1740426260884,3.2078,2629.9,2628.1,18.056297]
[1740426261089,3.2078,2631.1,2629.7,18.056297]
[1740426261288,3.2078,2631.1,2630.3,3.2078]
[1740426261589,0.30374725,2632.5,2631.0,3.2078]
[1740426261788,3.2078,2632.8,2631.2,3.2078]
[1740426261988,3.2078,2633.1,2632.2,3.2078]
[1740426262195,3.2078,2633.8,2632.2,3.2078]
[1740426262395,0.00570201,2632.9,2632.2,3.2078]
[1740426262894,3.2078,2632.3,2630.5,3.2078]
[1740426263095,9.98285999,2632.7,2631.8,3.2078]
[1740426263391,13.19065999,2632.7,2631.9,3.2078]
[1740426263694,13.19065999,2632.7,2630.8,1.9003]
[1740426263695,14.69685999,2632.7,2631.3,3.2078]
[1740426263898,3.21350201,2632.5,2631.3,3.2078]
[1740426264100,0.00570201,2632.5,2632.4,0.75967]
[1740426264393,0.00570201,2632.5,2632.4,3.96747]
[1740426264900,2.01e-06,2632.5,2632.4,3.96747]
[1740426265092,6.33694241,2632.7,2632.6,0.75961]
[1740426265292,1.68048241,2632.7,2632.6,18.815907]
[1740426265596,0.55227241,2632.7,2632.6,18.815907]
[1740426265997,0.55227241,2632.7,2632.3,3.2078]
[1740426266292,0.55227241,2632.7,2632.6,0.75961]
[1740426266495,0.00570201,2632.9,2632.8,0.75955]
[1740426267101,2.01e-06,2632.9,2632.8,0.75955]
[1740426268092,9.20780201,2632.9,2632.4,0.00570201]
[1740426268296,3.2078,2632.7,2631.5,1.89977]
[1740426268599,0.032,2632.8,2631.5,3.2078]
[1740426268600,3.2078,2632.5,2631.5,3.2078]
[1740426268799,0.032,2632.8,2632.0,3.2078]
[1740426268999,0.032,2632.8,2632.7,0.75958]
[1740426269200,0.75959,2632.7,2632.0,3.2078]
[1740426269401,3.2078,2632.1,2631.3,3.2078]
[1740426269599,3.2078,2632.1,2631.1,4.741]
[1740426269795,3.2078,2631.6,2630.8,3.2078]
[1740426269997,3.2078,2631.6,2631.3,0.00570201]
[1740426270195,0.032,2631.5,2631.3,0.00570201]
[1740426270903,3.2078,2631.3,2629.4,3.2078]
[1740426271093,3.2078,2630.3,2629.6,18.056297]
[1740426271299,3.2078,2630.3,2629.2,3.2078]
[1740426271500,3.2078,2630.3,2629.5,0.76048]
[1740426271700,3.2078,2630.3,2629.2,7.9478]
[1740426271998,7.9478,2630.7,2629.6,3.2078]
[1740426272198,3.21350201,2630.0,2628.9,7.9498]
[1740426272398,3.2078,2629.7,2629.1,18.056297]
[1740426272599,0.00570201,2630.0,2629.3,18.056297]
[1740426272806,0.76043,2629.8,2629.2,18.056297]
[1740426273004,0.00570201,2630.0,2629.4,3.2078]
[1740426273306,0.76042,2629.8,2629.4,3.2078]
[1740426273506,3.21350201,2630.0,2629.4,3.2078]
[1740426273803,3.2078,2629.7,2628.9,4.738]
[1740426274002,3.2078,2629.8,2629.2,3.2078]
[1740426274199,0.00570201,2630.0,2629.0,18.056297]
[1740426274200,3.2078,2629.5,2629.0,16.247597]
[1740426274407,0.00570201,2630.0,2628.1,7.9348]
[1740426274408,0.76081,2628.5,2628.1,7.9348]
[1740426274599,3.2078,2629.4,2628.4,19.455397]
[1740426274801,3.2078,2629.4,2628.4,16.247597]
[1740426275003,3.2078,2629.4,2628.1,14.99920356]
[1740426275004,0.00570201,2629.2,2628.6,16.247597]
[1740426275308,0.00570201,2629.2,2628.7,16.247597]
[1740426275506,0.00570201,2629.2,2629.1,19.455397]
[1740426275699,0.00570201,2629.2,2629.1,20.216017]
[1740426275895,0.00570201,2629.2,2629.1,19.455397]
[1740426276101,0.00570201,2629.2,2629.1,67.31780056]
[1740426276296,0.00570201,2629.2,2629.1,47.86240356]
[1740426276297,0.76629201,2629.2,2629.1,47.86240356]
[1740426276601,0.76629201,2629.2,2629.1,11.77940356]
[1740426276804,0.76629201,2629.2,2628.4,3.2078]
[1740426276805,3.21350201,2629.2,2628.4,3.2078]
[1740426277005,3.2078,2628.8,2628.4,16.247597]
[1740426277200,0.00570201,2629.2,2628.5,16.247597]
[1740426277401,0.00570201,2629.2,2628.4,19.455397]
[1740426277609,0.76088,2628.2,2627.8,3.2078]
[1740426277802,5.10966,2628.7,2628.1,16.247597]
[1740426278001,5.10966,2628.7,2627.8,3.2078]
[1740426278002,0.76092,2628.1,2628.0,16.247597]
[1740426278303,3.2078,2628.3,2627.8,3.2078]
[1740426278603,3.2078,2628.9,2628.2,3.2078]
[1740426278807,0.76082,2628.4,2628.3,16.247597]
[1740426279304,0.76082,2628.4,2628.3,0.0852405]
[1740426279505,6.0,2628.4,2627.5,0.5872]
[1740426279810,0.76137,2626.5,2626.4,3.2078]
[1740426280003,0.76137,2626.5,2625.5,0.30608613]
[1740426280004,3.2078,2626.5,2625.5,3.51388613]
[1740426280203,4.76,2627.0,2625.5,3.51388613]
[1740426280204,3.165179,2626.0,2625.5,3.51388613]
[1740426280506,3.165179,2626.0,2624.8,5.3061]
[1740426280507,3.2078,2626.0,2624.8,3.2078]
[1740426280701,3.2078,2625.4,2624.5,3.2078]
[1740426280899,3.2078,2625.4,2624.6,16.247597]
[1740426281100,3.2078,2624.7,2624.2,3.2078]
[1740426281510,3.2078,2625.3,2624.6,16.247597]
[1740426281710,3.2078,2625.3,2624.4,0.0426211]
[1740426281711,3.2078,2626.3,2625.2,16.247597]
[1740426281909,3.2078,2625.9,2625.1,16.247597]
[1740426282097,3.2078,2625.6,2625.5,0.0369072]
[1740426282499,3.2078,2625.6,2625.5,0.12214855]
[1740426282906,3.2078,2626.0,2625.5,0.0369072]
[1740426283207,3.2078,2626.0,2625.9,0.76155]
[1740426283399,4.827,2626.8,2625.9,21.076597]
[1740426283400,3.2078,2626.8,2625.9,21.076597]
[1740426283700,3.2078,2626.8,2626.7,0.76132]
[1740426283907,0.00571342,2626.6,2626.0,40.8]
[1740426284100,3.42e-06,2626.6,2626.5,17.008967]
[1740426284310,3.42e-06,2626.6,2626.5,20.216767]
[1740426284705,3.42e-06,2626.6,2626.5,41.320767]
[1740426284911,3.2078,2628.1,2626.6,1.90336]
[1740426285105,3.2078,2626.7,2626.3,0.0369072]
[1740426285311,3.2078,2626.7,2625.6,0.5627]
[1740426285513,6.74502,2627.1,2625.6,0.5627]
[1740426285514,3.2078,2626.4,2625.6,0.5627]
[1740426285713,3.2078,2626.7,2626.6,0.76134]
[1740426285908,3.2078,2626.7,2626.3,16.247597]
[1740426286110,3.2078,2626.7,2626.1,16.247597]
[1740426286407,0.00571342,2626.9,2626.8,0.76129]
[1740426286608,3.2078,2627.4,2627.3,0.76114]
[1740426287008,2.11773,2627.4,2627.3,0.76114]
[1740426287213,2.39476,2627.8,2627.7,0.76103]
[1740426287408,3.2078,2628.2,2627.9,0.76096]
[1740426287711,3.2078,2628.2,2626.8,3.2078]
[1740426287909,3.2078,2627.6,2626.8,3.2078]
[1740426288217,3.2078,2627.6,2627.2,0.03580421]
[1740426288609,3.96894,2627.3,2627.2,0.03580421]
[1740426288804,3.96894,2627.3,2625.9,3.2078]
[1740426288805,3.2078,2627.3,2625.9,3.2078]
[1740426289011,4.873,2627.5,2625.8,23.84919714]
[1740426289012,3.2078,2626.6,2625.8,23.84919714]
[1740426289318,1.90316,2626.9,2625.8,23.84919714]
[1740426289319,0.7615,2626.1,2625.8,0.5392]
[1740426289618,3.2078,2626.6,2625.8,16.786797]
[1740426289814,3.2078,2626.6,2626.1,16.247597]
[1740426290012,3.2078,2627.2,2626.5,16.247597]
[1740426290309,3.2078,2627.2,2626.6,3.2078]
[1740426290509,3.2078,2626.8,2626.2,3.2078]
[1740426290821,0.76139,2626.5,2626.2,3.2078]
[1740426291010,5.11652342,2627.1,2626.3,16.247597]
[1740426291209,3.21351342,2627.1,2626.7,3.2078]
[1740426291611,3.2078,2626.8,2626.1,3.2078]
[1740426291918,0.76145,2626.3,2626.1,3.2078]
[1740426292213,0.76152,2626.0,2625.9,0.00571342]
[1740426292905,0.76152,2626.0,2625.9,3.42e-06]
[1740426293420,6.76152,2626.0,2625.9,3.42e-06]
[1740426293714,0.76184,2624.9,2624.8,0.01441]
[1740426293905,4.872,2625.3,2624.3,0.5884]
[1740426294109,0.76195,2624.5,2624.4,16.247597]
[1740426294311,0.76191,2624.7,2624.4,0.04258652]
[1740426294517,8.0858,2625.3,2624.6,16.247597]
[1740426294715,4.878,2625.3,2624.6,16.247597]
[1740426295018,0.76195,2624.5,2624.4,0.04258652]
[1740426295919,0.00571342,2625.2,2624.4,16.29018352]
[1740426296118,0.00571342,2625.2,2625.1,16.247597]
[1740426296314,0.00571342,2625.2,2625.1,17.05196352]
[1740426296512,0.00571342,2625.2,2625.1,16.29018352]
[1740426296713,0.00571342,2625.2,2625.1,20.25976352]
[1740426297022,3.2078,2626.4,2625.1,25.12176352]
[1740426297321,3.2078,2626.4,2625.7,16.247597]
[1740426297520,3.2078,2626.7,2626.0,16.247597]
[1740426297716,0.76149,2626.1,2626.0,16.247597]
[1740426297912,1.90356,2626.4,2625.8,0.76155]
[1740426298109,3.2078,2626.7,2626.2,16.247597]
[1740426298314,0.76155,2625.9,2625.8,3.21351342]
[1740426298611,0.76155,2625.9,2625.8,0.00571342]
[1740426299013,0.76155,2625.9,2625.8,16.25331042]
[1740426299214,0.00571342,2626.4,2625.8,16.25331042]
[1740426299424,0.00571342,2626.4,2626.2,16.247597]
[1740426299425,0.76143,2626.3,2626.2,16.247597]
[1740426299716,0.00571342,2626.4,2626.3,16.247597]
[1740426299717,0.76714342,2626.4,2626.3,16.247597]
[1740426299913,0.00571342,2626.4,2626.3,20.216827]
[1740426300318,3.2078,2627.9,2626.3,9.2078]
[1740426300522,1.9025,2627.8,2627.3,19.455397]
[1740426300817,0.76123,2627.0,2626.9,3.2078]
[1740426301016,3.2078,2627.2,2626.7,16.247597]
[1740426301213,0.76129,2626.8,2626.7,16.247597]
[1740426301519,0.00571342,2627.2,2627.1,17.008797]
[1740426301719,0.76688342,2627.2,2627.1,19.455397]
[1740426301907,0.00571342,2627.2,2627.1,26.51779714]
[1740426302112,0.00571342,2627.2,2627.1,19.455397]
[1740426302312,4.845,2628.1,2627.6,0.76103]
[1740426302516,3.2078,2628.3,2627.7,19.455397]
[1740426302517,1.90227,2628.2,2627.7,19.455397]
[1740426302818,1.90168,2629.0,2627.9,17.008567]
[1740426303116,8.0458,2629.1,2627.9,17.008567]
[1740426303117,5.00893388,2628.0,2627.9,16.247597]
[1740426303425,3.2078,2629.1,2627.9,16.247597]
[1740426303719,3.2078,2628.5,2628.0,16.247597]
[1740426304016,0.761,2627.8,2627.7,3.2078]
[1740426304220,3.2078,2628.1,2627.1,3.2078]
[1740426304418,0.76105,2627.6,2627.5,3.2078]
[1740426304615,0.76105,2627.6,2627.5,16.247597]
[1740426304817,3.2078,2628.1,2627.5,16.247597]
[1740426305023,3.2078,2628.1,2627.3,3.21351342]
[1740426305024,5.10939,2629.1,2628.0,16.247597]
[1740426305319,0.76076,2628.6,2628.5,16.247597]
[1740426305712,3.2078,2629.1,2628.7,0.76074]
[1740426306021,0.76642342,2628.8,2628.7,16.247597]
[1740426306222,0.00571342,2628.8,2628.7,16.247597]
[1740426306619,0.00571342,2628.8,2628.7,17.008337]
[1740426306814,0.00571342,2628.8,2628.7,16.247597]
[1740426307011,0.76071,2628.8,2628.7,23.30999714]
[1740426307610,0.76082,2628.4,2628.3,3.2078]
[1740426307826,38.26697645,2630.1,2627.7,0.5861]
[1740426307827,0.761,2627.8,2627.7,7.64850014]
[1740426308020,8.0188,2628.4,2627.3,0.00571342]
[1740426308325,8.0188,2628.4,2627.7,16.247597]
[1740426308326,0.76102,2627.8,2627.7,16.247597]
[1740426308514,0.00571342,2628.0,2627.6,0.00571342]
[1740426308716,3.2078,2629.0,2628.0,1.90235]
[1740426308920,3.2078,2629.0,2628.9,17.008277]
[1740426309120,0.76065,2629.0,2628.9,16.247597]
[1740426309429,1.90127,2629.5,2628.9,16.247597]
[1740426309624,5.10896,2629.7,2628.2,3.2078]
[1740426309823,0.76053,2629.4,2629.3,16.247597]
[1740426310020,0.00362936,2629.5,2629.4,0.76053]
[1740426310325,1.90062,2630.4,2629.9,16.247597]
[1740426310522,8.52604112,2630.8,2630.0,3.2078]
[1740426310724,0.76018,2630.7,2630.6,16.247597]
[1740426311023,8.52604112,2630.8,2630.7,16.247597]
[1740426311323,8.52604112,2630.8,2630.7,20.215557]
[1740426311522,8.52604112,2630.8,2630.7,25.011557]
[1740426311723,8.52604112,2630.8,2630.7,28.10599714]
[1740426311922,0.76019,2630.6,2630.5,0.0057019]
[1740426312123,0.76019,2630.6,2630.5,23.31569904]
[1740426312426,0.76019,2630.6,2630.5,0.0057019]
[1740426312625,3.96799,2630.6,2630.5,1.9e-06]
[1740426313124,9.96799,2630.6,2630.5,1.9e-06]
[1740426313316,9.2078,2630.6,2628.5,3.2078]
[1740426313521,0.76065,2629.0,2628.9,16.247597]
[1740426313821,3.2078,2629.2,2628.5,3.2078]
[1740426313822,0.76068,2628.9,2628.8,16.247597]
[1740426314022,3.2078,2629.2,2628.8,16.2133099]
[1740426314223,3.2078,2629.8,2629.1,16.2133099]
[1740426314423,3.2078,2629.8,2628.8,3.2078]
[1740426314424,3.2078,2629.8,2629.4,16.2133099]
[1740426314619,3.53e-06,2629.3,2629.2,0.76059]
[1740426314816,3.53e-06,2629.3,2629.2,7.06240014]
[1740426315017,0.76071,2628.8,2628.3,3.2078]
[1740426315222,0.76071,2628.8,2628.2,0.5862]
[1740426315820,6.0,2628.8,2627.2,3.2078]
[1740426316025,0.761,2627.8,2627.7,16.2133099]
[1740426316225,0.76103,2627.7,2627.6,16.2133099]
[1740426316531,0.76103,2627.7,2627.4,16.2133099]
[1740426316532,3.2078,2627.7,2627.4,16.2133099]
[1740426316734,3.2078,2627.9,2627.2,3.2078]
[1740426316918,0.76103,2627.7,2627.6,16.2133099]
[1740426317119,3.2078,2627.9,2627.8,0.761]
[1740426317331,1.90206,2628.4,2627.8,16.2133099]
[1740426317629,0.761,2627.8,2627.7,3.2078]
[1740426317833,0.76111,2627.4,2627.3,0.0057019]
[1740426318227,0.76101,2627.8,2627.3,15.4563218]
[1740426318423,3.2078,2628.0,2627.7,15.4506199]
[1740426318619,0.76097,2627.9,2627.8,15.4506199]
[1740426318823,0.76111,2627.4,2627.3,0.0057019]
[1740426319131,3.2078,2628.0,2627.8,14.45521974]
[1740426319325,0.7666119,2628.1,2627.9,14.45521974]
[1740426319632,0.7666119,2628.1,2628.0,14.45521974]
[1740426319923,0.7666119,2628.1,2628.0,15.21615974]
[1740426319924,0.0057019,2628.1,2628.0,15.21615974]
[1740426320133,3.2078,2629.1,2628.0,19.23421974]
[1740426320327,3.2078,2629.1,2629.0,0.76065]
[1740426320534,3.2078,2629.8,2629.0,14.45521974]
[1740426320827,3.2078,2630.2,2629.7,14.45521974]
[1740426321225,17.46902856,2630.5,2630.3,0.76026]
[1740426321436,17.46902856,2630.5,2630.1,14.45521974]
[1740426321627,14.26122856,2630.5,2630.2,14.45521974]
[1740426321831,14.26122856,2630.5,2630.4,14.45521974]
[1740426322021,17.46902856,2630.5,2630.0,7.06240014]
[1740426322332,0.76049,2629.8,2629.7,0.0057019]
[1740426322633,3.96829,2629.8,2629.7,0.0057019]
[1740426323039,3.96829,2629.8,2628.7,0.5399]
[1740426323040,0.76078,2628.8,2628.7,0.5399]
[1740426323230,3.2078,2628.8,2628.0,3.2078]
[1740426323424,0.76085,2628.6,2628.5,14.45521974]
[1740426323623,0.5863,2630.2,2627.7,0.572]
[1740426323624,1.90218,2628.5,2627.7,0.572]
[1740426323837,0.76104,2627.9,2627.8,14.45521974]
[1740426324029,3.2078,2628.0,2627.8,14.45521974]
[1740426324336,4.807,2628.6,2627.9,15.21624974]
[1740426324337,0.0057019,2628.1,2627.9,15.21624974]
[1740426324632,0.0057019,2628.1,2628.0,8.77381]
[1740426324826,1.9e-06,2628.1,2628.0,23.22902974]
[1740426325026,3.2078,2629.3,2628.0,50.0078]
[1740426325230,3.2078,2628.8,2628.4,14.45521974]
[1740426325430,0.7609,2628.4,2628.3,14.45521974]
[1740426325633,0.76096,2628.2,2628.1,14.45521974]
[1740426325934,3.2078,2628.4,2628.3,15.21614974]
[1740426326232,3.9687,2628.4,2628.3,14.45521974]
[1740426326425,1.90183,2629.0,2628.3,22.27854988]
[1740426326623,3.2078,2629.0,2628.3,7.06240014]
[1740426326826,7.21167475,2629.4,2628.9,14.45521974]
[1740426327024,7.21167475,2629.4,2629.2,14.45521974]
[1740426327330,7.21167475,2629.4,2629.3,15.21585974]
[1740426327628,7.21167475,2629.4,2629.0,14.45521974]
[1740426327829,0.7607,2629.1,2629.0,14.45521974]
[1740426328033,0.7607,2629.1,2629.0,21.51761988]
[1740426328332,3.2078,2629.5,2629.0,14.45521974]
[1740426328526,0.7607,2629.1,2629.0,7.06240014]
[1740426328731,3.2078,2629.1,2628.4,0.5845]
[1740426328936,0.76081,2628.7,2628.6,14.45521974]
[1740426329322,3.2078,2628.7,2628.0,5.3712]
[1740426329528,0.76093,2628.3,2628.2,7.06240014]
[1740426329833,0.76101,2628.0,2627.9,0.0057019]
[1740426330133,3.96881,2628.0,2627.9,0.0057019]
[1740426331640,3.96881,2628.0,2627.9,1.9e-06]
[1740426332832,0.76121,2627.4,2626.9,3.2078]
[1740426333035,3.2078,2627.7,2627.6,14.45521974]
[1740426333231,3.2078,2627.7,2627.6,0.76113]
[1740426333539,0.0057019,2628.2,2627.6,14.45521974]
[1740426333836,0.0057019,2628.2,2628.1,15.21620974]
[1740426334035,3.96856,2628.9,2628.1,25.20521974]
[1740426334229,3.2078,2628.9,2628.8,0.76078]
[1740426334429,3.2078,2629.5,2628.8,14.45521974]
[1740426334636,3.2078,2629.5,2629.0,14.45521974]
[1740426334932,3.2078,2629.3,2629.2,14.45521974]
[1740426335136,3.2078,2629.3,2628.7,4.746]
[1740426335336,3.2078,2629.3,2629.2,15.21588974]
[1740426335935,11.73384112,2630.2,2629.2,14.45521974]
[1740426336138,11.73384112,2630.2,2629.8,14.45521974]
[1740426336327,0.76044,2630.0,2629.9,14.45521974]
[1740426336533,7.21961695,2629.9,2629.6,0.76055]
[1740426336733,7.98009695,2629.9,2629.6,0.76054]
[1740426336928,7.21961695,2629.9,2629.8,14.45521974]
[1740426337141,7.98007695,2629.9,2629.8,14.45521974]
[1740426337440,7.98007695,2629.9,2629.8,21.51761988]
[1740426337737,1.90127,2629.8,2629.0,3.9742219]
[1740426337939,0.7607,2629.1,2629.0,7.06810204]
[1740426338140,3.9685,2629.1,2629.0,0.0057019]
[1740426338337,3.2078,2629.1,2628.1,4.713]
[1740426338540,4.713,2629.5,2628.1,4.713]
[1740426338541,3.2078,2628.5,2628.1,4.713]
[1740426338843,0.76116,2627.5,2627.4,1.6724]
[1740426339038,3.2078,2628.5,2627.9,14.45521974]
[1740426339235,3.2078,2628.5,2628.1,1.90246]
[1740426339435,3.2078,2628.5,2628.4,14.45521974]
[1740426339436,0.0057019,2628.5,2628.4,14.45521974]
[1740426339637,0.0057019,2628.5,2628.2,14.45521974]
[1740426339936,5.11017,2628.3,2627.9,7.06810204]
[1740426340143,0.76101,2628.0,2627.9,21.52332178]
[1740426340334,0.76101,2628.0,2627.9,0.0057019]
[1740426340535,3.96881,2628.0,2627.9,0.0057019]
[1740426340734,0.0057019,2628.5,2628.4,0.7609]
[1740426340934,3.2078,2628.7,2628.4,14.45521974]
[1740426341143,0.5445,2629.4,2628.6,14.45521974]
[1740426341332,3.2078,2628.9,2628.7,14.45521974]
[1740426341536,3.2078,2628.9,2628.4,4.706]
[1740426341739,1.90225,2628.4,2627.9,0.0057019]
[1740426341932,0.76101,2628.0,2627.9,0.0057019]
[1740426342137,3.2078,2628.4,2627.9,14.46092164]
[1740426342346,3.2078,2628.4,2628.2,14.45521974]
[1740426342643,3.9687,2628.4,2628.3,14.45521974]
[1740426342840,3.9687,2628.4,2627.9,0.0057019]
[1740426342841,0.76101,2628.0,2627.9,0.0057019]
[1740426343037,3.96881,2628.0,2627.9,1.9e-06]
[1740426343741,9.96881,2628.0,2627.9,1.9e-06]
[1740426344139,3.96881,2628.0,2627.9,1.9e-06]
[1740426344738,9.96881,2628.0,2627.9,1.9e-06]
[1740426344942,3.96881,2628.0,2627.9,1.9e-06]
[1740426345748,3.2078,2628.0,2627.9,14.45522164]
[1740426345940,18.08309782,2628.1,2627.9,19.15742164]
[1740426346139,11.02639958,2628.1,2628.0,14.45442164]
[1740426346451,11.78738958,2628.1,2628.0,14.45442164]
[1740426346646,11.02639958,2628.1,2628.0,15.21543164]
[1740426346943,11.02069768,2628.1,2628.0,21.21543164]
[1740426347249,0.0057019,2628.2,2628.1,0.76099]
[1740426347444,0.0057019,2628.2,2628.1,15.21541164]
[1740426347650,11.02069768,2628.5,2628.1,20.45442164]
[1740426347944,11.02069768,2628.5,2628.4,15.21532164]
[1740426348147,11.02069768,2628.5,2628.4,19.91332164]
[1740426348443,25.90375926,2629.3,2628.5,1.90218]
[1740426348640,25.90375926,2629.3,2629.2,5.03838396]
[1740426348841,25.90375926,2629.3,2629.2,8.97571396]
[1740426348842,26.66439926,2629.3,2629.2,8.97571396]
[1740426349040,25.90375926,2629.3,2629.2,8.97571396]
[1740426349234,25.90375926,2629.3,2629.2,4.27771396]
[1740426349440,26.66439926,2629.3,2629.2,4.27771396]
[1740426349850,25.90375926,2629.3,2629.2,4.27771396]
[1740426350049,25.90375926,2629.3,2629.2,15.73338396]
[1740426350444,11.40898285,2629.7,2629.6,0.76055]
[1740426350642,11.40898285,2629.7,2629.6,6.76055]
[1740426350848,9.67134285,2629.7,2629.6,6.76055]
[1740426351150,12.83510571,2629.8,2629.7,0.76052]
[1740426351341,12.83510571,2629.8,2629.7,4.55572]
[1740426351545,12.83510571,2629.8,2629.7,51.35572]
[1740426351847,12.83510571,2629.8,2629.7,46.0744]
[1740426352047,12.83510571,2629.8,2629.7,56.04272]
[1740426352250,12.83510571,2629.8,2629.7,55.2822]
[1740426352652,12.83510571,2629.8,2629.7,56.04272]
[1740426352846,3.2078,2631.7,2629.7,60.30530073]
[1740426353152,3.79669267,2631.0,2630.3,3.2078]
[1740426353349,2.90579267,2631.1,2630.6,3.2078]
[1740426353548,3.2078,2631.5,2630.9,3.2078]
[1740426353549,3.66584267,2631.4,2630.9,3.2078]
[1740426353740,3.66584267,2631.4,2631.0,0.5874]
[1740426353741,2.90579267,2631.4,2631.0,0.5874]
[1740426353941,14.26122856,2631.8,2631.2,3.2078]
[1740426354248,14.26122856,2631.8,2631.3,4.671]
[1740426354746,0.75996,2631.7,2631.4,3.2078]
[1740426354951,14.26122856,2631.8,2631.4,3.2078]
[1740426355147,14.26122856,2631.8,2631.7,3.2078]
[1740426355348,3.66575267,2631.7,2631.4,4.674]
[1740426355548,0.76,2631.5,2631.4,4.674]
[1740426355849,0.76,2631.5,2631.4,4.673]
[1740426356046,3.2078,2632.1,2631.4,6.0]
[1740426356250,6.11359267,2632.1,2631.6,3.2078]
[1740426356446,3.2078,2633.1,2632.0,3.2078]
[1740426356756,0.75976,2632.4,2632.1,4.667]
[1740426356949,0.75976,2632.4,2632.1,5.2386]
[1740426357150,3.2078,2633.1,2632.3,3.2135019]
[1740426357351,3.2078,2633.1,2632.6,3.2078]
[1740426357555,0.75963,2632.8,2632.7,4.659]
[1740426357852,14.26122856,2633.2,2632.3,3.2135019]
[1740426358047,14.26122856,2633.2,2632.7,4.663]
[1740426358352,14.26122856,2633.2,2632.9,3.2078]
[1740426358856,14.26122856,2633.2,2633.0,45.456]
[1740426359052,14.26122856,2633.2,2633.1,0.75954]
[1740426359253,1.89828,2634.0,2633.0,51.456]
[1740426359552,0.75951,2633.2,2633.1,4.649]
[1740426359757,2.90579267,2633.4,2633.1,4.649]
[1740426360059,3.2078,2633.7,2633.1,4.649]
[1740426360258,1.8981,2634.2,2633.1,5.40853]
[1740426360259,1.89815,2634.1,2633.1,5.40853]
[1740426360556,2.90579267,2633.8,2633.5,3.2078]
[1740426360749,3.86602285,2633.7,2633.5,4.631]
[1740426360949,3.2078,2634.3,2633.5,4.631]
[1740426361151,1.89835,2633.8,2633.2,0.546]
[1740426361449,2.90579267,2633.8,2633.2,5.1867019]
[1740426361651,0.75948,2633.3,2633.2,5.1867019]
[1740426361957,3.2078,2634.0,2633.2,5.1867019]
[1740426362154,2.90579267,2633.9,2633.3,3.2078]
[1740426362455,3.2078,2634.0,2633.2,5.1867019]
[1740426362456,2.90579267,2634.0,2633.2,5.1867019]
[1740426362650,0.75941,2633.6,2633.2,9.1540119]
[1740426362950,0.75948,2633.3,2633.2,5.1867019]
[1740426363156,3.66527267,2633.3,2633.2,0.0057019]
[1740426363351,10.73909552,2633.3,2633.2,1.9e-06]
[1740426363551,3.66527267,2633.3,2633.2,1.9e-06]
[1740426363756,0.75948,2633.3,2633.2,1.9e-06]
[1740426364051,1.89794,2634.4,2633.2,27.0740019]
[1740426364245,0.75926,2634.1,2633.9,3.2078]
[1740426364449,0.75927,2634.1,2634.0,4.658]
[1740426364645,0.75927,2634.1,2633.3,1.1068]
[1740426364646,0.75945,2633.4,2633.3,0.5566]
[1740426364851,0.75948,2633.3,2633.2,1.9e-06]
[1740426365045,3.66527267,2633.3,2633.2,1.9e-06]
[1740426365246,0.75947,2633.4,2633.2,1.9e-06]
[1740426365446,0.75948,2633.3,2633.2,1.9e-06]
[1740426365760,10.73909552,2633.3,2633.2,1.9e-06]
[1740426365956,7.53129552,2633.3,2633.2,1.9e-06]
[1740426366658,1.89888,2633.1,2631.9,5.2026]
[1740426366953,7.07382285,2632.0,2631.3,3.2078]
[1740426367155,0.76,2631.5,2631.4,4.642]
[1740426367952,0.0057019,2631.7,2631.2,21.0767019]